Cogmind - Beta 15 @@@ ROGUE MODE // 2025.05.06 @ 14:51:00 Player: jumpy Result: Destroyed by S-43 Plague with Heavy Machine Gun Performance ------------- Evolutions (7) 3500 Regions Visited (14) 2800 Robots Destroyed (89) 445 Value Destroyed (2924) 2924 Prototype IDs (7) 140 Alien Tech Used (0) 0 Bonus (709) 709 TOTAL SCORE: 10518 Bonus ------- Follower Combat Kills 209 Entered DSFs 500 Cogmind --------- Core Integrity 0/1300 Matter 42/300 Energy 100/100 System Corruption 0% Temperature Cool (0) Movement Core (50) Location -3/Research Parts ------- > --- POWER (1) -------- (None) > --- PROPULSION (4) --- (None) > --- UTILITY (12) ----- (None) > --- WEAPON (4) ------- (None) > --- INVENTORY (5) ---- Armored Wheel Jamming Amplifier Peak State ------------ > --- POWER ------------ Light Antimatter Reactor > --- PROPULSION ------- Light Treads Improved Medium Treads Improved Medium Treads Improved Medium Treads > --- UTILITY ---------- Large Storage Unit Improved Sensor Array Improved Signal Interpreter Improved Targeting Computer Advanced Targeting Computer Weapon Cycler Weapon Cycler Advanced Shield Generator > --- WEAPON ----------- HERF Cannon Heavy Assault Rifle Mass Driver Scythe > --- INVENTORY -------- Improved Deuterium Engine Light Angular Momentum Engine Light Angular Momentum Engine Light Treads Light Treads Armored Wheel Sensor Array Gauss Rifle Advanced Assault Cannon Missile Launcher Scythe [Rating: 70] Favorites ----------- Power Improved Deuterium Engine Engine Improved Deuterium Engine Reactor Fusion Reactor Propulsion Light Treads Treads Light Treads Flight Unit Cooled Impulse Thruster Utility Large Storage Unit Device Weapon Cycler Storage Large Storage Unit Processor Improved Targeting Computer Protection Hardened Heavy Armor Plating Weapon Heavy Assault Rifle Energy Gun Medium Laser Energy Cannon Nova Cannon Ballistic Gun Heavy Assault Rifle Ballistic Cannon Mass Driver Launcher Missile Launcher Slashing Weapon Scythe Build | -11 -10 -9 -8 -7 -7 -7 -6 -6 -6 -5 -5 -4 -4 -3 ------- Run | Yrd Mat Mat Mat Fac Low Low Fac Low Low Fac DSF Fac Ext Res Slots Evolved 14 | . . 2 2 2 . . 2 . . 2 . 2 . 2 Power . | . . . . . . . . . . . . . . . Propulsion 2 | . . . 1 . . . 1 . . . . . . . Utility 10 | . . 1 1 1 . . 1 . . 2 . 2 . 2 Weapon 2 | . . 1 . 1 . . . . . . . . . . Parts Attached 81 | 7 10 3 4 12 4 . 4 10 . 6 . 3 10 8 Power 9 | 1 1 . . 2 . . 1 . . 1 . . 1 2 Engine 7 | 1 1 . . 2 . . 1 . . . . . . 2 Core . | . . . . . . . . . . . . . . . Reactor 2 | . . . . . . . . . . 1 . . 1 . Propulsion 29 | 2 5 1 2 3 1 . 1 5 . . . 3 2 4 Treads 27 | 2 5 1 2 3 1 . 1 5 . . . 3 2 2 Leg . | . . . . . . . . . . . . . . . Wheel . | . . . . . . . . . . . . . . . Hover . | . . . . . . . . . . . . . . . Flight 2 | . . . . . . . . . . . . . . 2 Utility 19 | 2 1 1 1 4 1 . 1 2 . 4 . . 1 1 Device 7 | 1 . . . 1 . . 1 . . 3 . . 1 . Storage 4 | 1 1 . 1 . . . . 1 . . . . . . Processor 5 | . . . . 1 1 . . 1 . 1 . . . 1 Hackware . | . . . . . . . . . . . . . . . Protection 3 | . . 1 . 2 . . . . . . . . . . Artifact . | . . . . . . . . . . . . . . . Weapon 24 | 2 3 1 1 3 2 . 1 3 . 1 . . 6 1 Energy Gun 1 | 1 . . . . . . . . . . . . . . Energy Cannon 2 | . . . . . . . . . . . . . 1 1 Ballistic Gun 14 | 1 3 1 1 3 2 . . 2 . . . . 1 . Ballistic Cannon 4 | . . . . . . . 1 . . 1 . . 2 . Launcher 1 | . . . . . . . . . . . . . 1 . Special Weapon . | . . . . . . . . . . . . . . . Impact Weapon . | . . . . . . . . . . . . . . . Slashing Weapon 2 | . . . . . . . . 1 . . . . 1 . Piercing Weapon . | . . . . . . . . . . . . . . . Special Melee Weapon . | . . . . . . . . . . . . . . . Unidentified Prototypes 4 | . . . 1 . . . . . . 1 . . . 2 Parts Lost 36 | . 4 . 1 . 1 . . 5 . . . . 18 7 Power 6 | . 1 . 1 . . . . . . . . . 1 3 Propulsion 12 | . 1 . . . . . . 1 . . . . 8 2 Utility 7 | . . . . . . . . 2 . . . . 4 1 Weapon 11 | . 2 . . . 1 . . 2 . . . . 5 1 Highest Loss Streak 13 | . 2 . 1 . 1 . . 3 . . . . 13 4 To Critical Strikes . | . . . . . . . . . . . . . . . Average Backups 11 | 3 10 14 14 14 13 11 12 10 7 7 8 9 10 3 Power 1 | . . . . . 1 1 2 3 3 3 3 3 3 1 Propulsion 3 | 1 4 5 4 4 3 3 3 2 1 1 1 1 4 1 Utility 2 | . 2 3 3 3 3 3 2 1 1 1 1 1 . . Weapon 4 | . 2 6 7 6 5 4 4 3 2 2 3 3 3 . Tool/Special . | . . . . . . . . . . . . . . . Unused Backups 15 | . 3 1 4 4 . . . . . . . . 1 2 Power . | . . . . . . . . . . . . . . . Propulsion 3 | . 2 . . . . . . . . . . . . 1 Utility 4 | . 1 . . 2 . . . . . . . . . 1 Weapon 8 | . . 1 4 2 . . . . . . . . 1 . Tool/Special . | . . . . . . . . . . . . . . . Average Slot Usage (%) 88 | . 96 98 99 94 91 92 90 78 86 89 100 89 84 37 Engine 6 | . 12 11 9 7 7 7 6 6 6 2 . . . 2 Treads 22 | . 27 21 27 23 23 23 26 23 26 23 23 21 20 5 Device 11 | . 14 11 9 8 7 7 10 8 6 13 23 21 16 5 Storage 7 | . 14 11 17 7 7 7 6 6 6 5 5 5 5 2 Processor 7 | . . . . 6 7 7 6 9 13 15 17 15 14 9 Protection 3 | . . 10 9 6 7 7 6 . . . . . . . Energy Gun 1 | . 12 . . . . . . . . . . . . . Ballistic Gun 20 | . 14 32 27 30 29 30 25 18 13 11 11 10 6 . Ballistic Cannon 1 | . . . . . . . . 1 6 5 5 5 8 . Slashing Weapon 1 | . . . . . . . . 1 6 5 5 5 5 2 Peak Build Rating 70 | 7 11 15 20 34 36 36 43 43 36 56 56 69 70 43 Average Rating 34 | 5 7 14 18 31 34 36 41 33 36 45 56 60 64 30 On Entrance 31 | . 7 11 15 20 34 36 36 43 36 36 56 56 69 16 Naked Turns 10 | . . . . . . . . . . . . . . 10 Heaviest Build 68 | 15 32 40 41 64 65 65 65 65 45 58 58 58 68 57 Greatest Support 113 | 40 40 40 60 60 60 60 80 88 80 80 80 110 113 46 Greatest Overweight (x) 7 | . . 1 . 1 1 1 . . . . . . 7 1 Average Overweight (x) . | . . . . . 1 1 . . . . . . . . Largest Inventory Capacity 15 | 8 15 15 15 15 15 15 15 15 15 15 15 15 15 15 Average Capacity 14 | 7 14 15 15 15 15 15 15 15 15 15 15 15 15 11 Most Carried 15 | 5 15 15 15 15 15 11 13 14 7 8 8 12 13 7 Average Carried 11 | 3 10 14 14 14 13 11 12 10 7 7 8 9 10 3 Final Capacity 15 | 8 15 15 15 15 15 15 15 15 15 15 15 15 15 5 Final Carried 15 | 5 15 15 15 15 11 11 13 7 7 8 8 12 8 2 Class Distribution -------------------- 34% | Gunner 33% | Scavenger-Gunner 21% | Mutant 5% | Tank Dominant Class ---------------- Mutant | -10/Materials Tank | -9/Materials Scavenger-Tank | -8/Materials Scavenger-Gunner | -7/Factory Scavenger-Gunner | -7/Lower Caves Scavenger-Gunner | -7/Lower Caves Gunner | -6/Factory Gunner | -6/Lower Caves Gunner | -6/Lower Caves Gunner | -5/Factory Gunner | -5/DSF Gunner | -4/Factory Gunner | -4/Extension Mutant | -3/Research Resources | -11 -10 -9 -8 -7 -7 -7 -6 -6 -6 -5 -5 -4 -4 -3 ----------- Run | Yrd Mat Mat Mat Fac Low Low Fac Low Low Fac DSF Fac Ext Res Matter Collected 2994 | 297 210 180 50 402 279 1 54 463 26 165 . . 867 . Remotely . | . . . . . . . . . . . . . . . Salvage Created 3494 | 145 590 192 97 459 91 . 140 498 51 239 73 . 736 183 Parts 173 | 9 21 20 9 33 . . 8 22 2 5 2 . 27 15 Haulers Intercepted 5 | . 1 . . 2 . . . . . 2 . . . . Recyclers Shooed 1 | . . . . . . . . . . . . . 1 . Parts Field Recycled . | . . . . . . . . . . . . . . . Retrieved Matter . | . . . . . . . . . . . . . . . Parts Self-Destructed 24 | . . . . . 1 . . 21 2 . . . . . Prevented 3 | . . . . . 2 1 . . . . . . . . Kills | -11 -10 -9 -8 -7 -7 -7 -6 -6 -6 -5 -5 -4 -4 -3 ------- Run | Yrd Mat Mat Mat Fac Low Low Fac Low Low Fac DSF Fac Ext Res Combat Hostiles Destroyed 64 | . 16 8 4 3 2 . 3 8 1 . 1 . 13 5 Melee 1 | . . . . . . . . . . . . . 1 . Guns 48 | . 15 8 4 3 2 . 3 8 1 . . . 4 . Cannons 9 | . . . . . . . . . . . 1 . 7 1 AOE 5 | . . . . . . . . . . . . . 1 4 Classes Destroyed 17 | 2 5 1 . 2 1 . . 3 . 1 1 . 1 . Worker 6 | . . . . 4 . . . . . . . . . 2 Builder 1 | . . . . . . . . . . . . . 1 . Tunneler 5 | 4 . . . 1 . . . . . . . . . . Hauler 5 | . 1 . . 2 . . . . . 2 . . . . Recycler 3 | 1 . . . 1 . . . . . . . . 1 . Mechanic 1 | . . . . . . . . . . 1 . . . . Operator 1 | . 1 . . . . . . . . . . . . . Watcher 3 | . 1 . . 1 . . . . . . . . . 1 Swarmer 23 | . 6 6 3 . . . . 1 . . . . 3 4 Grunt 16 | . 10 1 . . 1 . 1 1 . . . . 1 1 Brawler 2 | . . . . . . . . 1 . . . . 1 . Duelist 2 | . . . . . . . . 2 . . . . . . Sentry 11 | . . 1 1 2 . . 1 1 . . . . 5 . Specialist 1 | . . . . . . . . . . . 1 . . . Hunter 5 | . . . . . . . . 2 1 . . . 2 . Programmer 2 | . . . . 1 . . 1 . . . . . . . Behemoth 1 | . . . . . 1 . . . . . . . . . Thug 1 | . . . . . . . . . . . . . 1 . Best Kill Streak 7 | 5 4 3 3 3 1 . 1 6 1 2 1 . 3 7 Combat Bots Only 6 | . 4 3 3 2 1 . 1 6 1 . 1 . 3 3 Max Kills in Single Turn 4 | 1 1 1 1 2 1 . 1 1 1 1 1 . 2 4 Gunslinging . | . . . . . . . . . . . . . . . Exploded 3 | . . . . . . . . . . . . . 1 3 Melee 1 | . . . . . . . . . . . . . 1 . Uniques/NPCs Destroyed . | . . . . . . . . . . . . . . . Combat | -11 -10 -9 -8 -7 -7 -7 -6 -6 -6 -5 -5 -4 -4 -3 -------- Run | Yrd Mat Mat Mat Fac Low Low Fac Low Low Fac DSF Fac Ext Res Hostile Shots Fired 800 | . 114 25 22 87 49 . 14 70 12 3 8 . 218 178 Missed 265 | . 24 5 6 33 20 . 4 17 4 1 1 . 76 74 Hits 535 | . 90 20 16 54 29 . 10 53 8 2 7 . 142 104 Melee 2 | . . . . . . . . 2 . . . . . . Projectile 533 | . 90 20 16 54 29 . 10 51 8 2 7 . 142 104 Critical Strikes 17 | . . . . . . . . 3 1 . . . 9 4 Part Disruptions 1 | . . . . . . . . . . . 1 . . . Damage Taken 8973 | . 993 196 181 448 604 . 119 918 136 . 92 . 2999 2287 Core 2193 | . 187 28 25 17 23 . . 38 14 . . . 543 1318 Absorbed by Shields 223 | . . . . . . . . . . . 32 . 191 . Core Remaining (%) 81 | 100 25 93 95 . . 94 . . 93 . 100 . 52 . Volleys Fired 241 | 9 73 14 6 17 13 . 9 19 2 7 1 . 54 17 Largest 4 | 2 2 3 3 4 4 . 4 4 3 3 2 . 3 2 Hottest 158 | 70 73 69 69 97 97 . 102 102 91 98 75 . 158 153 Shots Fired 596 | 18 128 42 18 68 48 . 27 56 6 21 2 . 137 25 Gun 495 | 18 128 42 18 68 48 . 24 56 4 14 1 . 74 . Cannon 92 | . . . . . . . 3 . 2 7 1 . 62 17 Launcher 9 | . . . . . . . . . . . . . 1 8 Special . | . . . . . . . . . . . . . . . Kinetic 503 | 9 63 42 18 68 48 . 27 56 6 21 2 . 135 8 Thermal 83 | 9 65 . . . . . . . . . . . . 9 Explosive 9 | . . . . . . . . . . . . . 1 8 Electromagnetic 1 | . . . . . . . . . . . . . 1 . Robot Hit Streak 29 | 3 14 5 8 19 10 . 13 7 7 27 29 . 21 2 Robot Miss Streak 5 | 3 3 4 1 3 2 . 4 4 . . . . 5 3 Penetration Max 2 | . . . . . . . . 1 . 1 . . 2 . Secondary Targets 10 | . 2 2 . 1 . . . 5 . . . . . . Max Gunslinging Chain 1 | . 1 1 . 1 . . . 1 . . . . . . Shots Hit Robots 397 | 9 83 19 14 47 38 . 16 42 9 20 2 . 92 6 Core Hits 212 | 6 30 9 5 29 14 . 17 32 3 6 1 . 39 21 Critical Kills 3 | . . . . . . . . 1 . . . . 2 . Critical Parts Destroyed 1 | . . . . . . . . . . . . . 1 . Critical Strikes 13 | 1 6 . . . . . . 1 . . . . 5 . Burn 7 | 1 6 . . . . . . . . . . . . . Destroy 4 | . . . . . . . . 1 . . . . 3 . Blast 2 | . . . . . . . . . . . . . 2 . Melee Attacks 8 | . . . . . . . . 1 4 1 . . 2 . Impact . | . . . . . . . . . . . . . . . Slashing 8 | . . . . . . . . 1 4 1 . . 2 . Piercing . | . . . . . . . . . . . . . . . Sneak Attacks 1 | . . . . . . . . . 1 . . . . . Combat Hostiles 1 | . . . . . . . . . 1 . . . . . Follow-up Attacks . | . . . . . . . . . . . . . . . Damage Inflicted 8612 | 114 1085 305 197 775 678 . 307 747 228 467 59 . 2713 937 Guns 5550 | 114 1080 305 197 775 678 . 307 682 54 297 19 . 1042 . Cannons 1835 | . . . . . . . . . 17 170 40 . 1348 260 Explosions 919 | . . . . . . . . . . . . . 250 669 Melee 287 | . . . . . . . . 65 157 . . . 65 . Ramming 21 | . 5 . . . . . . . . . . . 8 8 Kinetic 6538 | 52 487 305 197 775 678 . 307 682 71 467 59 . 2350 108 Thermal 927 | 62 593 . . . . . . . . . . . 120 152 Explosive 799 | . . . . . . . . . . . . . 130 669 Electromagnetic 40 | . . . . . . . . . . . . . 40 . Impact . | . . . . . . . . . . . . . . . Slashing 287 | . . . . . . . . 65 157 . . . 65 . Piercing . | . . . . . . . . . . . . . . . Highest Corruption 25 | . . . . . . . 1 1 1 . . . 25 . Average Corruption 10 | . . . . . . . 1 1 1 . . . 21 . Corruption Purged . | . . . . . . . . . . . . . . . Corruption Blocked . | . . . . . . . . . . . . . . . Effects 71 | . . . . . . . 2 7 1 . . . 61 . Message Errors 14 | . . . . . . . . 2 . . . . 12 . Matter Fused 17 | . . . . . . . 1 3 1 . . . 12 . Heat Flow Errors 7 | . . . . . . . 1 . . . . . 6 . Energy Discharges 6 | . . . . . . . . 1 . . . . 5 . Parts Rejected 2 | . . . . . . . . . . . . . 2 . Data Loss (minor) 7 | . . . . . . . . 1 . . . . 6 . Data Loss (major) 1 | . . . . . . . . . . . . . 1 . Misfires 1 | . . . . . . . . . . . . . 1 . Misdirections 7 | . . . . . . . . . . . . . 7 . Weapon Failures 9 | . . . . . . . . . . . . . 9 . Overload Shots . | . . . . . . . . . . . . . . . Overflow Damage 88 | . . . . . . . . 43 . . . . 6 39 Projectiles 6 | . . . . . . . . . . . . . 6 . Explosions 39 | . . . . . . . . . . . . . . 39 Melee 43 | . . . . . . . . 43 . . . . . . Knockbacks 10 | . . . . . . . . . 1 . . . 9 . Impact . | . . . . . . . . . . . . . . . Kinetic 8 | . . . . . . . . . 1 . . . 7 . Secondary 2 | . . . . . . . . . . . . . 2 . Self-Inflicted Damage 78 | . . . . . . . . . . . . . 75 3 Shots 1 | . . . . . . . . . . . . . 1 . Rammed 6 | . 2 . . . . . 1 . . . . . 1 2 Targets Rammed 6 | . 2 . . . . . 1 . . . . . 1 2 Kicked . | . . . . . . . . . . . . . . . Crushed . | . . . . . . . . . . . . . . . Highest Temperature 367 | 27 274 39 18 160 367 . 243 62 30 144 . . 315 308 Average Temperature 73 | 10 68 16 8 43 176 . 78 30 22 59 . . 86 120 Received Heat Transfer 1390 | . 453 36 45 132 111 . 21 27 . . . . 487 78 Effects 6 | . 2 . . . 3 . . . . . . . 1 . Energy Bleed 5 | . 2 . . . 2 . . . . . . . 1 . Short Circuit 1 | . . . . . 1 . . . . . . . . . Siege Activations . | . . . . . . . . . . . . . . . Martial Activations . | . . . . . . . . . . . . . . . Shielding Activations . | . . . . . . . . . . . . . . . Robots Disrupted . | . . . . . . . . . . . . . . . Combat Hostiles . | . . . . . . . . . . . . . . . Robots Corrupted . | . . . . . . . . . . . . . . . Combat Hostiles . | . . . . . . . . . . . . . . . Parts Fried . | . . . . . . . . . . . . . . . Impact Corruptions . | . . . . . . . . . . . . . . . Robots Melted 1 | . 1 . . . . . . . . . . . . . Combat Hostiles 1 | . 1 . . . . . . . . . . . . . Parts Melted 3 | 1 2 . . . . . . . . . . . . . Heat Transferred 2690 | 259 2183 . . . . . . . . . . . 100 148 Parts Sabotaged . | . . . . . . . . . . . . . . . Parts Stolen . | . . . . . . . . . . . . . . . Parts Stripped . | . . . . . . . . . . . . . . . Power Chain Reactions . | . . . . . . . . . . . . . . . Alert | -11 -10 -9 -8 -7 -7 -7 -6 -6 -6 -5 -5 -4 -4 -3 ------- Run | Yrd Mat Mat Mat Fac Low Low Fac Low Low Fac DSF Fac Ext Res Maximum Alert Level 1 | . . . . . . . . . . . . . . 1 Low Security (%) 99 | 100 100 100 100 100 . . 100 . . 100 100 100 100 93 Level 1 . | . . . . . . . . . . . . . . 6 Level 2 . | . . . . . . . . . . . . . . . Level 3 . | . . . . . . . . . . . . . . . Level 4 . | . . . . . . . . . . . . . . . Level 5 . | . . . . . . . . . . . . . . . High Security . | . . . . . . . . . . . . . . . Max Security . | . . . . . . . . . . . . . . . Peak Influence 255 | 10 133 141 60 53 . . 50 . . 15 38 19 145 255 Initial 42 | . . 27 42 22 . . . . . . 3 19 . . Average 31 | 1 73 54 10 5 . . 6 . . 1 21 1 55 68 Influence Increases 2366 | 25 463 197 100 143 65 . 80 175 30 39 35 . 609 405 Destroy 0b10 Robot/C 1360 | . 320 160 80 60 40 . 60 160 20 . 20 . 340 100 Destroy 0b10 Robot/NC 130 | 25 15 . . 45 . . . 5 . 15 . . 10 15 Destroy Leader 276 | . 84 30 20 36 10 . 20 10 10 4 . . 30 22 Allied During Kill 66 | . . . . . . . . . . . . . 66 . Successful Hack 25 | . 14 6 . . . . . . . 5 . . . . Disable Machine 75 | . 15 . . . . . . . . 15 . . 45 . Destroy Structure 119 | . . 1 . 2 . . . . . . . . 88 28 Partial Spotted 30 | . . . . . . . . . . . . . . 30 Lose Combat Pursuer 285 | . 15 . . . 15 . . . . . 15 . 30 210 Influence Decreases 2131 | 25 396 163 151 193 65 . 80 175 30 34 2 38 609 170 Entered New Map 148 | . . 40 59 28 . . . . . . 2 19 . . Time Decay 1592 | 25 356 123 82 165 65 . 80 155 30 34 . 19 358 100 Lost Part 251 | . 40 . 10 . . . . 20 . . . . 111 70 Lost Ally 140 | . . . . . . . . . . . . . 140 . Squads Dispatched 18 | . 4 . . 2 . . 3 . . . . 1 2 6 Investigation 4 | . 1 . . . . . 1 . . . . . 1 1 Extermination 4 | . . . . 2 . . 1 . . . . 1 . . Reinforcement 7 | . 3 . . . . . 1 . . . . . 1 2 Assault . | . . . . . . . . . . . . . . . Garrison 3 | . . . . . . . . . . . . . . 3 Intercept . | . . . . . . . . . . . . . . . Searches Triggered . | . . . . . . . . . . . . . . . Construction Impeded 1 | . . . . . . . . . . . . . . 1 Haulers Reinforced . | . . . . . . . . . . . . . . . Active Scanning Responses . | . . . . . . . . . . . . . . . Cargo Convoy Interrupts 1 | . . . . 1 . . . . . . . . . . Stealth | -11 -10 -9 -8 -7 -7 -7 -6 -6 -6 -5 -5 -4 -4 -3 --------- Run | Yrd Mat Mat Mat Fac Low Low Fac Low Low Fac DSF Fac Ext Res Distress Signals 8 | . 1 . . . . . 2 . . . . . 4 1 Communications Jammed . | . . . . . . . . . . . . . . . Distress Signals . | . . . . . . . . . . . . . . . Times Spotted 129 | . 22 8 10 4 3 . 6 13 1 2 2 . 26 32 Peak Tracking Total 14 | . 6 2 3 2 1 . 4 6 1 2 1 . 5 14 Tactical Retreats 8 | . 1 . . . 1 . . . . . 1 . 2 3 Traps | -11 -10 -9 -8 -7 -7 -7 -6 -6 -6 -5 -5 -4 -4 -3 ------- Run | Yrd Mat Mat Mat Fac Low Low Fac Low Low Fac DSF Fac Ext Res Traps Triggered 10 | . 1 1 . . . . 2 . . . . . 5 1 Indirectly . | . . . . . . . . . . . . . . . Trap Hack Attempts . | . . . . . . . . . . . . . . . Triggered . | . . . . . . . . . . . . . . . Disarmed . | . . . . . . . . . . . . . . . Reprogrammed . | . . . . . . . . . . . . . . . Reused . | . . . . . . . . . . . . . . . Traps Extracted . | . . . . . . . . . . . . . . . Installed . | . . . . . . . . . . . . . . . Triggered . | . . . . . . . . . . . . . . . Machines | -11 -10 -9 -8 -7 -7 -7 -6 -6 -6 -5 -5 -4 -4 -3 ---------- Run | Yrd Mat Mat Mat Fac Low Low Fac Low Low Fac DSF Fac Ext Res Machines Disabled 5 | . 1 . . . . . . . . 1 . . 3 . Max in Single Turn 3 | . 1 . . . . . . . . 1 . . 3 . Energy Cycler 1 | . . . . . . . . . . . . . 1 . Machines Repaired . | . . . . . . . . . . . . . . . Machines Dismantled . | . . . . . . . . . . . . . . . Machines Sabotaged . | . . . . . . . . . . . . . . . Overloaded Fab Kills . | . . . . . . . . . . . . . . . Hacking | -11 -10 -9 -8 -7 -7 -7 -6 -6 -6 -5 -5 -4 -4 -3 --------- Run | Yrd Mat Mat Mat Fac Low Low Fac Low Low Fac DSF Fac Ext Res Machines Accessed 7 | . 1 1 . . . . 1 . . 1 . 1 1 1 Terminals 6 | . 1 1 . . . . . . . 1 . 1 1 1 Fabricators . | . . . . . . . . . . . . . . . Repair Stations 1 | . . . . . . . 1 . . . . . . . Recycling Units . | . . . . . . . . . . . . . . . Scanalyzers . | . . . . . . . . . . . . . . . Garrison Access . | . . . . . . . . . . . . . . . Total Hacks 14 | . 1 2 . . . . 1 . . 1 . 3 4 2 Successful 4 | . 1 1 . . . . . . . 1 . 1 . . Failed 10 | . . 1 . . . . 1 . . . . 2 4 2 Catastrophic 2 | . . . . . . . . . . . . . 1 1 Database Lockouts . | . . . . . . . . . . . . . . . Manual 2 | . . 2 . . . . . . . . . . . . Terminals 13 | . 1 2 . . . . . . . 1 . 3 4 2 Fabricators . | . . . . . . . . . . . . . . . Repair Stations 1 | . . . . . . . 1 . . . . . . . Recycling Units . | . . . . . . . . . . . . . . . Scanalyzers . | . . . . . . . . . . . . . . . Garrison Access . | . . . . . . . . . . . . . . . Terminal Hacks 4 | . 1 1 . . . . . . . 1 . 1 . . Robot Analysis 1 | . . 1 . . . . . . . . . . . . Prototype ID Bank 1 | . 1 . . . . . . . . . . . . . Open Door 1 | . . . . . . . . . . . . 1 . . Open DSF 1 | . . . . . . . . . . 1 . . . . Fabricator Hacks . | . . . . . . . . . . . . . . . Repair Station Hacks . | . . . . . . . . . . . . . . . Recycling Unit Hacks . | . . . . . . . . . . . . . . . Scanalyzer . | . . . . . . . . . . . . . . . Garrison Access Hacks . | . . . . . . . . . . . . . . . Unauthorized Hacks . | . . . . . . . . . . . . . . . Terminals . | . . . . . . . . . . . . . . . Fabricators . | . . . . . . . . . . . . . . . Repair Stations . | . . . . . . . . . . . . . . . Recycling Units . | . . . . . . . . . . . . . . . Scanalyzers . | . . . . . . . . . . . . . . . Garrison Access . | . . . . . . . . . . . . . . . Data Cores Recovered . | . . . . . . . . . . . . . . . Used . | . . . . . . . . . . . . . . . Hacking Detections 4 | . 1 . . . . . 1 . . . . . 1 1 Full Trace Events 2 | . . . . . . . . . . . . . 1 1 Feedback Events . | . . . . . . . . . . . . . . . Feedback Blocked . | . . . . . . . . . . . . . . . Robot Schematics Acquired . | . . . . . . . . . . . . . . . Robots Built . | . . . . . . . . . . . . . . . Authchips . | . . . . . . . . . . . . . . . Time . | . . . . . . . . . . . . . . . Total Robot Build Rating . | . . . . . . . . . . . . . . . Part Schematics Acquired . | . . . . . . . . . . . . . . . Parts Built . | . . . . . . . . . . . . . . . Authchips . | . . . . . . . . . . . . . . . Time . | . . . . . . . . . . . . . . . Total Part Build Rating . | . . . . . . . . . . . . . . . Parts Repaired . | . . . . . . . . . . . . . . . Time . | . . . . . . . . . . . . . . . Parts Recycled . | . . . . . . . . . . . . . . . Recycled Matter . | . . . . . . . . . . . . . . . Retrieved Matter . | . . . . . . . . . . . . . . . Retrieved Components . | . . . . . . . . . . . . . . . Parts Scanalyzed . | . . . . . . . . . . . . . . . Part Schematics Acquired . | . . . . . . . . . . . . . . . Parts Damaged . | . . . . . . . . . . . . . . . Bothacking | -11 -10 -9 -8 -7 -7 -7 -6 -6 -6 -5 -5 -4 -4 -3 ------------ Run | Yrd Mat Mat Mat Fac Low Low Fac Low Low Fac DSF Fac Ext Res Used RIF Installer . | . . . . . . . . . . . . . . . Robots Hacked . | . . . . . . . . . . . . . . . Non-combat . | . . . . . . . . . . . . . . . Combat . | . . . . . . . . . . . . . . . Robot Hacks Applied . | . . . . . . . . . . . . . . . Relay Couplers Released . | . . . . . . . . . . . . . . . Fabnet Peak Effective % . | . . . . . . . . . . . . . . . Robots Rewired 9 | . . . . . . . . 2 . . . . 7 . Allies Hacked . | . . . . . . . . . . . . . . . Hacks Repelled . | . . . . . . . . . . . . . . . Allies | -11 -10 -9 -8 -7 -7 -7 -6 -6 -6 -5 -5 -4 -4 -3 -------- Run | Yrd Mat Mat Mat Fac Low Low Fac Low Low Fac DSF Fac Ext Res Total Allies 9 | . . . . . . . . 2 . . . . 7 . Largest Group 4 | . . . . . . . . 2 . . . . 4 . Highest-Rated Group 176 | . . . . . . . . 61 . . . . 176 . Highest-Rated Ally 46 | . . . . . . . . 32 . . . . 46 . Total Orders . | . . . . . . . . . . . . . . . Ally Attacks 45 | . . . . . . . . 4 . . . . 41 . Total Damage 1089 | . . . . . . . . 98 . . . . 991 . Kills 4 | . . . . . . . . . . . . . 4 . Allies Corrupted 1 | . . . . . . . . . . . . . 1 . Allies Melted 1 | . . . . . . . . . . . . . 1 . Intel | -11 -10 -9 -8 -7 -7 -7 -6 -6 -6 -5 -5 -4 -4 -3 ------- Run | Yrd Mat Mat Mat Fac Low Low Fac Low Low Fac DSF Fac Ext Res Active Infowar (turns) 3777 | 70 906 326 342 380 . . . . . 247 79 294 952 181 Sensors 1753 | . . . . . . . . . . 247 79 294 952 181 Seismic 2024 | 70 906 326 342 380 . . . . . . . . . . Robot Analysis Total 1 | . . 1 . . . . . . . . . . . . Derelict Logs Recovered 2 | . . . . . 1 . . 1 . . . . . . Drone Launches . | . . . . . . . . . . . . . . . Drone Recoveries . | . . . . . . . . . . . . . . . Exploration | -11 -10 -9 -8 -7 -7 -7 -6 -6 -6 -5 -5 -4 -4 -3 ------------- Run | Yrd Mat Mat Mat Fac Low Low Fac Low Low Fac DSF Fac Ext Res Turns Passed 7883 | 150 906 326 342 1370 1018 216 572 817 144 323 79 294 978 348 Spaces Moved 4014 | 72 408 164 188 592 393 91 312 457 80 183 44 179 450 401 Core 40 | 6 . . . . . . . . . . . . 1 33 Treads 3706 | 66 408 164 188 592 393 91 312 457 80 183 44 179 449 100 Legs . | . . . . . . . . . . . . . . . Wheels . | . . . . . . . . . . . . . . . Hover . | . . . . . . . . . . . . . . . Flight 268 | . . . . . . . . . . . . . . 268 Fastest Speed 34 | 50 160 160 160 160 240 240 160 160 162 162 162 162 160 34 Average Speed 168 | 150 160 160 160 212 240 240 160 160 162 162 162 162 160 70 Slowest Speed 400 | 160 160 240 160 240 240 240 160 162 162 162 162 162 400 240 Overloaded Moves . | . . . . . . . . . . . . . . . Propulsion Burnouts . | . . . . . . . . . . . . . . . Robots Hopped 10 | . . . . . . . . . . . . . . 10 Potential Cave-ins . | . . . . . . . . . . . . . . . Cave-ins Triggered . | . . . . . . . . . . . . . . . Exploration Rate (%) 28 | 6 76 20 20 11 53 24 9 64 20 5 41 6 54 13 Regions Visited 14 Branch Regions 5 Pre-discovered Areas . | . . . . . . . . . . . . . . . Known Exits Taken 3 | . . . . . . . . . . 1 . 1 1 . Unknown Exits Taken 10 | 1 1 1 1 1 1 1 1 1 1 . . . . . Scrap Searched 6 | . . . . . 4 . . 2 . . . . . . Spaces Dug . | . . . . . . . . . . . . . . . Terrain Destroyed 64 | . . . . . . . . . 1 . . . 50 13 Melee . | . . . . . . . . . . . . . . . Projectile 32 | . . . . . . . . . 1 . . . 31 . AOE 32 | . . . . . . . . . . . . . 19 13 Terrain Rammed . | . . . . . . . . . . . . . . . Walls Destroyed . | . . . . . . . . . . . . . . . Machines Disabled . | . . . . . . . . . . . . . . . Actions | -11 -10 -9 -8 -7 -7 -7 -6 -6 -6 -5 -5 -4 -4 -3 --------- Run | Yrd Mat Mat Mat Fac Low Low Fac Low Low Fac DSF Fac Ext Res Total 4696 | 92 533 197 218 666 438 90 369 504 85 196 51 182 636 439 Wait 138 | . 17 5 8 26 25 . 37 . . . 7 . 6 7 Move 3985 | 71 407 163 187 591 392 90 311 456 79 182 43 178 449 386 Hop 5 | . . . . . . . . . . . . . . 5 Pick Up 50 | 5 16 5 5 5 . . 4 . . . . 1 8 1 Fast Attach 32 | 7 1 3 2 3 . . 1 4 . 4 . . 2 5 Attach 29 | . 3 2 1 1 3 . 2 3 . . . . 7 7 Detach . | . . . . . . . . . . . . . . . Swap 43 | . 6 1 3 8 2 . 3 7 . 2 . 3 8 . Drop 58 | . 8 4 6 15 3 . 1 6 . . . . 6 9 Fire 241 | 9 73 14 6 17 13 . 9 19 2 7 1 . 54 17 Melee 8 | . . . . . . . . 1 4 1 . . 2 . Ram 2 | . . . . . . . . . . . . . . 2 Kick . | . . . . . . . . . . . . . . . Crush 4 | . 2 . . . . . 1 . . . . . 1 . Escape Stasis . | . . . . . . . . . . . . . . . Rewire 101 | . . . . . . . . 8 . . . . 93 . Trap . | . . . . . . . . . . . . . . . Miscellaneous . | . . . . . . . . . . . . . . . Route ------- -11/Scrapyard -10/Materials -9/Materials -8/Materials (discovered 2 exits: [*Fac] / [*Sto]) -7/Factory -7/Lower Caves -7/Lower Caves -6/Factory -6/Lower Caves -6/Lower Caves -5/Factory -5/DSF -4/Factory -4/Extension -3/Research History --------- Turn | Location | Event 6 | -11/Scrapyard | Discovered new exit (range 14) 151 | -11/Scrapyard | Entered Materials 301 | -10/Materials | Build established: Mutant 711 | -10/Materials | Core integrity fell below 50% 996 | -10/Materials | Discovered new exit (range 10) 1057 | -10/Materials | Entered another Materials area 1057 | -9/Materials | Evolved 2 slots: Utility x1, Weapon x1 1359 | -9/Materials | Discovered new exit (range 16) 1383 | -9/Materials | Entered another Materials area 1383 | -8/Materials | Evolved 2 slots: Propulsion x1, Utility x1 1470 | -8/Materials | Build established: Tank 1479 | -8/Materials | Discovered new exit (range 13) 1696 | -8/Materials | Discovered new exit (range 7) 1725 | -8/Materials | Entered Factory 1725 | -7/Factory | Evolved 2 slots: Utility x1, Weapon x1 1975 | -7/Factory | Discovered new exit (range 15) 2032 | -7/Factory | Build established: Scavenger-Gunner 2768 | -7/Factory | Cargo convoy interrupted 3095 | -7/Factory | Entered Lower Caves 3175 | -7/Lower Caves | Learned Factory emergency access door positions 3626 | -7/Lower Caves | Spotted B-75 Beast 3694 | -7/Lower Caves | Destroyed B-75 Beast 4077 | -7/Lower Caves | Discovered new exit (range 15) 4113 | -7/Lower Caves | Entered another Lower Caves area 4303 | -7/Lower Caves | Discovered new exit (range 12) 4329 | -7/Lower Caves | Entered Factory 4329 | -6/Factory | Evolved 2 slots: Propulsion x1, Utility x1 4635 | -6/Factory | Build established: Gunner 4876 | -6/Factory | Discovered new exit (range 16) 4901 | -6/Factory | Entered Lower Caves 4987 | -6/Lower Caves | Lost 3 parts (1n1u1w) 5240 | -6/Lower Caves | Attracted the attention of an 0b10 outpost 5453 | -6/Lower Caves | Encountered a Warlord checkpoint 5605 | -6/Lower Caves | Discovered new exit (range 6) 5654 | -6/Lower Caves | Learned Factory trap positions 5718 | -6/Lower Caves | Entered another Lower Caves area 5852 | -6/Lower Caves | Discovered new exit (range 5) 5862 | -6/Lower Caves | Entered Factory 5862 | -5/Factory | Evolved 2 slots: Utility x2 5863 | -5/Factory | Loaded intel: 65 trap records 6183 | -5/Factory | Identified exit to DSF 6185 | -5/Factory | Entered DSF 6240 | -5/DSF | Discovered new exit (range 15) 6249 | -5/DSF | Additional patrols routed to DSF 6263 | -5/DSF | Identified exit to Factory 6264 | -5/DSF | Entered Factory 6264 | -4/Factory | Evolved 2 slots: Utility x2 6552 | -4/Factory | Discovered new exit (range 6) 6557 | -4/Factory | Identified exit to Extension 6558 | -4/Factory | Entered Extension 6592 | -4/Extension | System corruption reached 10% 6840 | -4/Extension | Lost 3 allies 6926 | -4/Extension | Lost 4 parts (2u2w) 7108 | -4/Extension | Disrupted transfer network 7124 | -4/Extension | Spotted B-86 Titan 7134 | -4/Extension | Energy Cycler disabled 7135 | -4/Extension | Rescued a captive Derelict 7138 | -4/Extension | Rescued a captive Derelict 7142 | -4/Extension | Rescued a captive Derelict 7183 | -4/Extension | Lost 3 allies 7512 | -4/Extension | Discovered new exit (range 12) 7535 | -4/Extension | Identified exit to Research 7536 | -4/Extension | Entered Research 7536 | -3/Research | Evolved 2 slots: Utility x2 7567 | -3/Research | Lost 13 parts (1p7n2u3w) 7679 | -3/Research | Garrison activated, responded to threat 7785 | -3/Research | Lost 4 parts (1p1n1u1w) 7816 | -3/Research | Found Prototype Processor 7816 | -3/Research | Identified Exp. Target Analyzer 7876 | -3/Research | Core integrity fell below 50% 7882 | -3/Research | Core integrity fell below 20% 7884 | -3/Research | Destroyed by S-43 Plague with Heavy Machine Gun Last Messages --------------- 07823_ ALERT: Security rotation in progress. 07851_ Lgt. Angular Momentum Engine destroyed. 07860_ C-30 ARC bursts open, deploying its payload. 07860_ S-43 Plague unfolds itself. 07866_ Connecting with Door Terminal... 07866_ ALERT: Suspicious activity at Terminal R001. Dispatching Investigation squad. 07867_ Imp. Deuterium Engine destroyed. 07871_ S-43 Plague destroyed. 07872_ Field Propulsion Array destroyed. 07872_ Discarded Imp. Signal Interpreter. 07873_ Discarded Imp. Targeting Computer. 07873_ Discarded Exp. Target Analyzer. 07874_ Dropped Cld. Impulse Thruster. 07878_ Slammed into S-43 Plague. 07878_ S-43 Plague destroyed. 07879_ Slammed into S-43 Plague. 07880_ R-10 Processor collects Hvy. Machine Gun. 07882_ S-43 Plague destroyed. 07884_ R-10 Processor collects Xenon Bombardment Thruster. Map ----- +----------------------------------------------------+ | # ????# ##?????????# # #???????????? | | #?######+# #?????????# #####+###+#???????????? | | ??# + #?????????# ?? ??????????????? | | ??# # #?????????# ????????????? | | ??# ## ##?????????# ??????????? | | ??# ?| ## #??????????+ #?????????? | | ??#?? ## #??????????# #?????????? | | ????? ]## #??????????# """ """ #?????????? | | ????#+##### #??????????# """ """ #?????????? | | ????# ????# #??????????# """ """ #?????????? | | ????# ????# #??????????#A +?????????? | | ????# ##### ### """ ??# ? ??? #?????????? | | ????/ / """ ??+ ???? #?????????? | | ????# #####+### """ ??# #######?????#?????????? | | ????# #??# #?????????# A#?????????????????????? | | ????# #??# #?????????# #?????????????????????? | | ????# #??# #?????????# #?????????????????????? | | ##### #### #?????????# #?????????????????????? | | + #?????????# #?????????????????????? | | # = #?????????# +?????????????????????? | | # #?????????# #?????????????????????? | | #####?????????#R #?????????????????????? | | #??????########sR #?????????????????????? | | +??????# # #????###??????????????? | | #??????# #s%s#?? #??????????????? | | #### #??????# #s@=# #??????????????? | | ???### #??????# /ss ; #??????????????? | | ?????# ######## #* s# #??????????????? | | ?????# + %! #%= # ] #??????????????? | | ?????# #################= #? #??????????????? | | ?????# #????????# = ?# s #?######??????????????? | | ?????# #????????# # #?????????????????????? | | ?????#+#????????# ! # #?????????????????????? | | ????????????????# + #?????????????????????? | | ????????????????# # #?????????????????????? | | ????????????????# ! ??# #?????????????????????? | | ????????????????###??### ###???????????????????? | | ?????????????????????#T #???????????????????? | | ?????????????????????"""""""""???????????????????? | | ?????????????????????????????????????????????????? | | ?????????????????????????????????????????????????? | | ?????????????????????????????????????????????????? | | ?????????????????????????????????????????????????? | | ?????????????????????????????????????????????????? | | ?????????????????????????????????????????????????? | | ?????????????????????????????????????????????????? | | ?????????????????????????????????????????????????? | | ?????????????????????????????????????????????????? | | ?????????????????????????????????????????????????? | | ?????????????????????????????????????????????????? | +----------------------------------------------------+ Best States ------------- Heat Dissipation 46 Energy Generation 23 Energy Capacity 295 Matter Stores 300 Matter Capacity 450 Sight Range 16 Robot Scan Range 15 Terrain Scan Density 10 Armor Coverage 600 Weapon Cycling 30 Evasion (%) 63 Targeting Accuracy 14 Target Analysis 10 Recoil Reduction 8 Item Schematics ----------------- None Robot Schematics ------------------ None Fabricated ------------ Nothing Repaired ---------- Nothing Alien Tech Used ----------------- None Achievements -------------- None Challenges ------------ None Game ------ Seed PlexusBladeThrower Manual? 0 Play Time 00:42:50 Cumulative 81.1 hours Start 2025.05.06 @ 14:04:27 End 2025.05.06 @ 14:51:00 Sessions 1 Manual Loads 0 Difficulty Rogue Special Mode None Game No. 208 Rogue 208 Adventurer 0 Explorer 0 Win Type - Total 2 Types 2/0/0/0/0/0/0/0/0/0 Lore% 34 Gallery% 44 Achievement% 35 Wizard Run 0 Options --------- Layout 0 ASCII 0 Keyboard 0 Movement Numpad Keybinds 0 Fullscreen 2 Font 18/Terminus Map View 76x50 Zoom Use 0% Tactical HUD 1 Map Filters NONE Filters NONE Steam 1 RUN: 318e7fcb-1ebf-47da-b78a-924ef668c7c7